lending/lending_fUSD_20240824
["ID","MTS","AMOUNT","RATE_DAILY","PERIOD"]
[335773925,1724485843611,-500.0,0.00010958,2]
[335773927,1724485843620,-438.1031577,0.00010958,2]
[335773930,1724485843630,-500.0,0.00010958,2]
[335773932,1724485843640,-500.0,0.00010958,2]
[335773934,1724485843651,-500.0,0.00010958,2]
[335773936,1724485843660,-827.3,0.00010958,2]
[335773938,1724485843669,-500.0,0.00010958,2]
[335773940,1724485843679,-162.7530392,0.00010958,2]
[335773942,1724485843688,-500.0,0.00010958,2]
[335773945,1724485843697,-500.0,0.00010958,2]
[335773948,1724485843706,-500.0,0.00010958,2]
[335773950,1724485843715,-540.95342901,0.00010958,2]
[335773952,1724485843724,-500.0,0.00010958,2]
[335773954,1724485843733,-602.25898516,0.00010958,2]
[335773955,1724485843742,-500.0,0.00010958,2]
[335773957,1724485843752,-793.87,0.00010958,2]
[335773958,1724485843761,-500.0,0.00010958,2]
[335773959,1724485843770,-529.34133749,0.00010958,2]
[335773960,1724485843779,-550.40671221,0.00010958,2]
[335773961,1724485843788,-500.0,0.00010958,2]
[335773962,1724485843797,-574.13,0.00010958,2]
[335773963,1724485843806,-1564.19,0.00010958,2]
[335773964,1724485843815,-594.91200439,0.00010958,2]
[335773965,1724485843824,-564.53874376,0.00010958,2]
[335773966,1724485843834,-581.98,0.00010958,2]
[335773967,1724485843843,-561.88749747,0.00010958,2]
[335773968,1724485843852,-548.81554599,0.00010958,2]
[335773969,1724485843862,-549.97934818,0.00010958,2]
[335773970,1724485843871,-500.0,0.00010958,2]
[335773971,1724485843880,-500.0,0.00010958,2]
[335773972,1724485843889,-533.46958965,0.00010958,2]
[335773973,1724485843898,-521.43394966,0.00010958,2]
[335773974,1724485843907,-500.0,0.00010958,2]
[335773976,1724485843916,-154.25,0.00010959,2]
[335773978,1724485843925,-200.0,0.00010973,2]
[335773980,1724485843934,-500.0,0.00010991,2]
[335773982,1724485843943,-5051.76,0.00010991,2]
[335773984,1724485843952,-500.0,0.00010991,2]
[335773985,1724485843962,-500.0,0.00010991,2]
[335773987,1724485843971,-500.0,0.00010991,2]
[335773989,1724485843979,-500.0,0.00010991,2]
[335773991,1724485843988,-500.0,0.00010991,2]
[335773993,1724485843997,-793.87,0.00010991,2]
[335773994,1724485844006,-500.0,0.00010991,2]
[335773996,1724485844017,-1564.19,0.00010991,2]
[335773998,1724485844028,-581.98,0.00010991,2]
[335774000,1724485844038,-6216.8850724,0.00010992,2]
[335774002,1724485844047,-11698.72578134,0.00010992,2]
[335774004,1724485844059,-1066.32182804,0.00010992,2]
[335774006,1724485844073,-449.242,0.00010992,2]
[335774009,1724485844091,-250.69,0.00010992,2]
[335774011,1724485844104,-1075.28624298,0.00010992,2]
[335774262,1724485846465,-547.39285044,0.00010888,2]
[335774264,1724485846475,-847.11720615,0.00010992,2]
[335774267,1724485846487,-572.85,0.00010992,2]
[335774269,1724485846498,-517.49928082,0.00010992,2]
[335774271,1724485846509,-1143.97892178,0.00010992,2]
[335774273,1724485846520,-15183.09361482,0.00010992,2]
[335774275,1724485846531,-1891.09879631,0.00010992,2]
[335774278,1724485846545,-2580.28709736,0.00010992,2]
[335774280,1724485846557,-4280.59175971,0.00010992,2]
[335774282,1724485846567,-2522.7804,0.00010992,2]
[335774284,1724485846578,-4549.56207069,0.00010992,2]
[335774286,1724485846587,-61.15153242,0.00010992,2]
[335774288,1724485846597,-1218.39768234,0.00010992,2]
[335774291,1724485846610,-295.85754478,0.00010992,2]
[335774293,1724485846621,-269.38241397,0.00010992,2]
[335774295,1724485846631,-1235.77614729,0.00010992,2]
[335774297,1724485846641,-2430.70322945,0.00010992,2]
[335774299,1724485846653,-910.07126,0.00010992,2]
[335774302,1724485846668,-1095.59125425,0.00010992,2]
[335774304,1724485846678,-526.91448358,0.00010996,2]
[335774307,1724485846687,-500.0,0.00010996,2]
[335774309,1724485846697,-500.0,0.00010996,2]
[335774311,1724485846706,-500.0,0.00010996,2]
[335774313,1724485846716,-500.0,0.00010996,2]
[335774315,1724485846726,-500.0,0.00010996,2]
[335774317,1724485846735,-576.34,0.00010996,2]
[335774319,1724485846744,-500.0,0.00010996,2]
[335774321,1724485846753,-873.53,0.00010996,2]
[335774323,1724485846762,-500.0,0.00010996,2]
[335774325,1724485846772,-1620.88,0.00010996,2]
[335774327,1724485846781,-500.0,0.00010996,2]
[335774329,1724485846790,-262.1686808,0.00010996,2]
[335774331,1724485846799,-167.6,0.00010996,2]
[335774333,1724485846809,-1091.23,0.00010996,2]
[335774335,1724485846818,-500.0,0.00010996,2]
[335774337,1724485846828,-500.0,0.00010996,2]
[335774339,1724485846838,-500.0,0.00010996,2]
[335774341,1724485846848,-500.0,0.00010996,2]
[335774342,1724485846858,-642.54362727,0.00010996,2]
[335774343,1724485846868,-500.0,0.00010996,2]
[335774344,1724485846879,-427.90253413,0.00010996,2]
[335774345,1724485846889,-500.0,0.00010997,2]
[335774346,1724485846899,-500.0,0.00010997,2]
[335774347,1724485846909,-3101.63,0.00010997,2]
[335774348,1724485846918,-2205.17,0.00010997,2]
[335774349,1724485846927,-500.0,0.00010997,2]
[335774350,1724485846936,-500.0,0.00010997,2]
[335774351,1724485846946,-554.25,0.00010997,2]
[335774352,1724485846955,-2194.12,0.00010997,2]
[335774353,1724485846964,-500.0,0.00010997,2]
[335774354,1724485846973,-500.0,0.00010997,2]
[335774355,1724485846982,-500.0,0.00010997,2]
[335774356,1724485846990,-500.0,0.00010997,2]
[335774357,1724485847001,-596.13,0.00010997,2]
[335774359,1724485847010,-515.69,0.00010997,2]
[335774361,1724485847018,-500.0,0.00010997,2]
[335774363,1724485847027,-14.54825387,0.00010997,2]
[335774365,1724485847038,-485.45174613,0.00010997,2]
[335774367,1724485847047,-902.4,0.00010997,2]
[335774369,1724485847056,-500.0,0.00010997,2]
[335774371,1724485847065,-500.0,0.00010997,2]
[335774373,1724485847078,-291.08309673,0.00010997,2]
[335774375,1724485847090,-208.91690327,0.00010997,2]
[335774377,1724485847099,-500.0,0.00010997,2]
[335774379,1724485847107,-800.19761022,0.00010997,2]
[335775415,1724486030697,513.0,0.00027,120]
[335775417,1724486038060,200.0,9.897e-05,2]
[335775418,1724486057303,609.36,8.219e-05,2]
[335775419,1724486080892,1000.0,9.894e-05,2]
[335775420,1724486086799,500.0,9.9e-05,2]
[335775421,1724486176059,1635.86752569,9.9e-05,2]
[335775423,1724486268532,653.5,9.897e-05,2]
[335775424,1724486278939,1633.32080295,9.9e-05,2]
[335775425,1724486291847,186.66,9.897e-05,2]
[335775426,1724486368754,171.91,9.901e-05,2]
[335775427,1724486392734,1074.43,9.903e-05,2]
[335775428,1724486411091,250.0,9.899e-05,2]
[335775429,1724486431372,150.0,0.00025503,120]
[335775430,1724486454530,-266.89184508,0.00010371,2]
[335775431,1724486454552,-589.0,0.0001047,2]
[335775432,1724486454574,-609.36,0.00010471,2]
[335775433,1724486467269,-1050.0,0.000106,2]
[335775434,1724486467290,-2837.0,0.00010699,2]
[335775435,1724486467312,-1500.0,0.000107,2]
[335775436,1724486467336,-270.0311,0.000107,2]
[335775437,1724486467357,-1500.0,0.00010731,2]
[335775438,1724486467380,-150.0,0.00010733,2]
[335775439,1724486467403,-150.0,0.00010741,2]
[335775440,1724486467424,-150.0,0.00010748,2]
[335775441,1724486467444,-300.0,0.0001076,2]
[335775442,1724486467467,-150.0,0.00010761,2]
[335775443,1724486467487,-528.84,0.00010761,2]
[335775444,1724486467509,-150.0,0.00010763,2]
[335775445,1724486467531,-150.0,0.00010771,2]
[335775446,1724486467552,-150.0,0.00010771,2]
[335775447,1724486467571,-150.0,0.00010778,2]
[335775448,1724486467590,-150.0,0.00010793,2]
[335775449,1724486467612,-150.0,0.00010795,2]
[335775450,1724486467631,-444.21332815,0.00010799,2]
[335775451,1724486467650,-2388.81570417,0.00010799,2]
[335775452,1724486474534,-150.0,0.00010814,2]
[335775453,1724486474560,-150.0,0.00010819,2]
[335775454,1724486474585,-874.129566,0.00010825,2]
[335775455,1724486474609,-1500.0,0.00010836,2]
[335775456,1724486474637,-150.0,0.00010839,2]
[335775457,1724486474661,-1603.39393033,0.00010852,2]
[335775458,1724486474687,-150.0,0.00010856,2]
[335775459,1724486474711,-150.0,0.00010862,2]
[335775460,1724486474736,-516.81257679,0.00010862,2]
[335775461,1724486474761,-150.0,0.00010863,2]
[335775462,1724486474786,-150.0,0.00010869,2]
[335775463,1724486474812,-2500.0,0.00010892,2]
[335775464,1724486474835,-361.99457083,0.00010893,2]
[335775465,1724486474860,-3058.3099,0.00010896,2]
[335775466,1724486474886,-1500.0,0.00010897,2]
[335775467,1724486474911,-150.0,0.00010897,2]
[335775468,1724486474938,-150.0,0.00010898,2]
[335775469,1724486474963,-2029.48541523,0.00010899,2]
[335775470,1724486474987,-265.54939791,0.00010899,2]
[335775471,1724486475029,346.40351478,0.00010899,2]
[335775472,1724486476130,316.20655906,0.00010852,2]
[335775473,1724486490752,150.0,0.00025853,120]
[335775474,1724486507271,-265.54939791,0.00010899,2]
[335775475,1724486507291,-169.54496818,0.000109,2]
[335775476,1724486507313,-3501.502642,0.000109,2]
[335775477,1724486507336,-209.44699376,0.00010902,2]
[335775478,1724486507358,-150.0,0.00010905,2]
[335775479,1724486507378,-150.0,0.00010909,2]
[335775480,1724486507400,-150.0,0.00010917,2]
[335775481,1724486507420,-203.24854396,0.00010925,2]
[335775482,1724486507441,-150.0,0.00010926,2]
[335775483,1724486507461,-2050.70745419,0.0001093,2]
[335775484,1724486563352,23900.0,0.00010007,2]
[335775485,1724486606489,2432.47,9.998e-05,2]
[335775486,1724486617335,500.0,0.0001,2]
[335775487,1724486624135,500.0,0.0001,2]
[335775488,1724486632881,500.0,0.0001,2]
[335775489,1724486638612,500.0,0.0001,2]
[335775490,1724486644698,500.0,0.0001,2]
[335775491,1724486657527,267.57,0.0001,2]
[335775492,1724486661914,200.0,9.997e-05,2]
[335775493,1724486670804,150.0,0.00026599,120]
[335775494,1724486731616,150.0,0.00026423,120]
[335775495,1724486784606,186.68,9.971e-05,2]
[335775496,1724486790793,150.0,0.00026267,120]
[335775497,1724486799639,573.82,8.219e-05,2]
[335775498,1724486837224,228.35,9.947e-05,2]
[335775514,1724486850738,150.0,0.0002053,120]
[335775515,1724486851675,175.6,9.952e-05,2]
[335775516,1724486880721,473.72,9.941e-05,2]
[335775517,1724486884022,155.57775669,9.962e-05,2]
[335775518,1724486884840,457.22192345,9.962e-05,2]
[335775519,1724486900844,633.53,9.949e-05,2]
[335775520,1724486911318,150.0,0.00018493,120]
[335775522,1724486941679,250.0,9.955e-05,2]
[335775523,1724486953070,200.0,9.951e-05,2]
[335775524,1724486971122,150.0,0.00025532,120]
[335775535,1724487030769,150.0,0.00026819,120]
[335775539,1724487034474,-448.12958754,0.00010471,2]
[335775540,1724487034529,-25727.6583289,0.00010471,2]
[335775541,1724487034538,-573.82,0.00010475,2]
[335775542,1724487034548,-1314.07027482,0.00010699,2]
[335775543,1724487034636,-632.04790597,0.00010699,2]
[335775544,1724487034645,-133.24231455,0.00010699,2]
[335775675,1724487037667,-22.31065768,0.00010699,2]
[335775676,1724487037845,-203.10130847,0.00010713,2]
[335775677,1724487037855,-304.23573553,0.00010713,2]
[335775678,1724487037865,-3638.1452817,0.00010799,2]
[335775679,1724487037875,-150.0,0.00010817,2]
[335775680,1724487037885,-150.0,0.00010821,2]
[335775681,1724487037895,-150.0,0.00010829,2]
[335775682,1724487037905,-304.36483986,0.00010852,2]
[335775683,1724487037915,-1300.9168339,0.00010852,2]
[335775684,1724487037924,-600.70370687,0.00010862,2]
[335775685,1724487037934,-150.0,0.00010866,2]
[335775686,1724487037944,-531.44678913,0.00010888,2]
[335775687,1724487037953,-2370.77861,0.0001089,2]
[335775688,1724487037964,-155.0,0.0001089,2]
[335775689,1724487037974,-150.0,0.00010891,2]
[335775690,1724487037985,-2767.92080933,0.00010892,2]
[335775691,1724487037998,-5990.59268382,0.00010892,2]
[335775692,1724487038014,-1287.74,0.00010892,2]
[335775693,1724487038033,-5348.55212631,0.00010892,2]
[335775694,1724487038045,-995.12790016,0.00010892,2]
[335775826,1724487039559,-288.14132428,0.00010862,2]
[335775829,1724487039569,-125.59192222,0.00010892,2]
[335775833,1724487039580,-1058.18044309,0.00010892,2]
[335775836,1724487039591,-4170.03465609,0.00010892,2]
[335775840,1724487039616,-352.69495898,0.00010892,2]
[335775842,1724487039626,-251.76504102,0.00010898,2]
[335775843,1724487039721,-338.75125898,0.00010898,2]
[335775844,1724487039731,-303.3037382,0.00010899,2]
[335775845,1724487039741,-9999.99,0.00010899,2]
[335775846,1724487039750,-150.99,0.00010899,2]
[335775847,1724487039759,-2862.46636115,0.00010899,2]
[335775848,1724487039769,-166.39780491,0.00010899,2]
[335775849,1724487039778,-164.58292647,0.000109,2]
[335775850,1724487039787,-2563.8,0.00010949,2]
[335775851,1724487039796,-949.8028791,0.00010949,2]
[335775852,1724487039806,-500.0,0.00010958,2]
[335775853,1724487039815,-500.0,0.00010958,2]
[335775854,1724487039825,-500.0,0.00010958,2]
[335775855,1724487039835,-500.0,0.00010958,2]
[335775856,1724487039844,-2843.16,0.00010958,2]
[335775857,1724487039854,-500.0,0.00010958,2]
[335775858,1724487039863,-500.0,0.00010958,2]
[335775859,1724487039872,-500.0,0.00010958,2]
[335775860,1724487039882,-500.0,0.00010958,2]
[335775861,1724487039892,-500.0,0.00010958,2]
[335775862,1724487039901,-500.0,0.00010958,2]
[335775863,1724487039911,-500.0,0.00010958,2]
[335775864,1724487039921,-500.0,0.00010958,2]
[335775865,1724487039931,-500.0,0.00010958,2]
[335775866,1724487039940,-166.08,0.00010959,2]
[335775867,1724487039950,-500.0,0.00010973,2]
[335775868,1724487039960,-200.0,0.00010973,2]
[335775869,1724487039970,-200.0,0.00010973,2]
[335775870,1724487039979,-164.40811307,0.00010989,2]
[335775871,1724487039988,-500.0,0.00010991,2]
[335775872,1724487039997,-4095.9870224,0.00010992,2]
[335775873,1724487040007,-2740.77042152,0.00010992,2]
[335775874,1724487040018,-5621.69645048,0.00010992,2]
[335775875,1724487040027,-33713.0413333,0.00010992,2]
[335775876,1724487040036,-15804.8819441,0.00010992,2]
[335775877,1724487040046,-348.33845653,0.00010993,2]
[335775878,1724487040055,-500.0,0.00010996,2]
[335775879,1724487040064,-500.0,0.00010996,2]
[335775880,1724487040073,-500.0,0.00010996,2]
[335775881,1724487040082,-500.0,0.00010996,2]
[335775882,1724487040091,-500.0,0.00010996,2]
[335775883,1724487040100,-500.0,0.00010996,2]
[335775884,1724487040110,-500.0,0.00010996,2]
[335775885,1724487040119,-673.61797236,0.00010996,2]
[335775886,1724487040128,-500.0,0.00010997,2]
[335775887,1724487040138,-600.37792986,0.00010997,2]
[335775889,1724487040147,-500.0,0.00010997,2]
[335775891,1724487040156,-2843.16,0.00010997,2]
[335775893,1724487040165,-500.0,0.00010997,2]
[335775895,1724487040174,-500.0,0.00010997,2]
[335775896,1724487040183,-500.0,0.00010997,2]
[335775898,1724487040192,-500.0,0.00010997,2]
[335775900,1724487040202,-500.0,0.00010997,2]
[335775902,1724487040211,-500.0,0.00010997,2]
[335775904,1724487040220,-500.0,0.00010997,2]
[335775906,1724487040229,-500.0,0.00010997,2]
[335775908,1724487040239,-500.0,0.00010997,2]
[335775910,1724487040248,-500.0,0.00010997,2]
[335775912,1724487040257,-4630.78,0.00010997,2]
[335775914,1724487040266,-500.0,0.00010997,2]
[335775916,1724487040275,-552.33,0.00010997,2]
[335775918,1724487040284,-500.0,0.00010997,2]
[335775920,1724487040295,-837.13,0.00010997,2]
[335775922,1724487040304,-205.56,0.00010997,2]
[335775924,1724487040313,-500.0,0.00010997,2]
[335775926,1724487040322,-1553.34,0.00010997,2]
[335775927,1724487040331,-500.0,0.00010997,2]
[335775929,1724487040341,-500.0,0.00010997,2]
[335775931,1724487040350,-500.0,0.00010997,2]
[335775933,1724487040359,-500.0,0.00010997,2]
[335775935,1724487040369,-500.0,0.00010997,2]
[335775937,1724487040378,-500.0,0.00010997,2]
[335775939,1724487040387,-727.71,0.00010997,2]
[335775941,1724487040396,-2102.7,0.00010997,2]
[335775943,1724487040406,-500.0,0.00010997,2]
[335775945,1724487040415,-500.0,0.00010997,2]
[335775947,1724487040424,-500.0,0.00010997,2]
[335775949,1724487040433,-500.0,0.00010997,2]
[335775951,1724487040442,-550.21,0.00010997,2]
[335775953,1724487040452,-370.72,0.00010997,2]
[335775955,1724487040460,-500.0,0.00010997,2]
[335775957,1724487040470,-500.0,0.00010997,2]
[335775959,1724487040479,-1433.84,0.00010997,2]
[335775961,1724487040488,-500.0,0.00010997,2]
[335775962,1724487040497,-500.0,0.00010997,2]
[335775964,1724487040507,-827.2,0.00010997,2]
[335775966,1724487040516,-1045.76,0.00010997,2]
[335775968,1724487040526,-500.0,0.00010997,2]
[335775970,1724487040535,-759.49,0.00010997,2]
[335775972,1724487040545,-500.0,0.00010997,2]
[335775974,1724487040554,-500.0,0.00010997,2]
[335775975,1724487040563,-500.0,0.00010997,2]
[335775977,1724487040572,-533.49,0.00010997,2]
[335775979,1724487040581,-500.0,0.00010997,2]
[335775981,1724487040591,-786.91066,0.00010997,2]
[335775983,1724487040614,-786.91066,0.00010997,2]
[335775985,1724487040623,-786.91067,0.00010997,2]
[335775987,1724487040633,-786.91066,0.00010997,2]
[335775989,1724487040642,-786.91067,0.00010997,2]
[335775990,1724487040651,-786.91067,0.00010997,2]
[335775992,1724487040660,-2370.7786,0.00010997,2]
[335775994,1724487040669,-2370.77861,0.00010997,2]
[335775996,1724487040678,-2370.77861,0.00010997,2]
[335775998,1724487040687,-2370.77861,0.00010997,2]
[335776000,1724487040699,-500.0,0.00010997,2]
[335776002,1724487040709,-500.0,0.00010997,2]
[335776004,1724487040718,-500.0,0.00010997,2]
[335776006,1724487040727,-2113.29,0.00010997,2]
[335776008,1724487040736,-366.51572793,0.00010997,2]
[335776010,1724487040746,-500.0,0.00010997,2]
[335776011,1724487040755,-500.0,0.00010997,2]
[335776013,1724487040764,-500.0,0.00010997,2]
[335776015,1724487040773,-500.0,0.00010997,2]
[335776017,1724487040783,-552.32,0.00010997,2]
[335776019,1724487040792,-5388.94377888,0.00010997,2]
[335776021,1724487040801,-1355.02268001,0.00010998,3]
[335776023,1724487040810,-11838.6113653,0.00010998,2]
[335776025,1724487040819,-500.0,0.00010998,2]
[335776027,1724487040828,-500.0,0.00010998,2]
[335776029,1724487040837,-500.0,0.00010998,2]
[335776031,1724487040850,-500.0,0.00010998,2]
[335776032,1724487040859,-500.0,0.00010998,2]
[335776034,1724487040869,-500.0,0.00010998,2]
[335776036,1724487040878,-500.0,0.00010998,2]
[335776038,1724487040887,-500.0,0.00010998,2]
[335776040,1724487040897,-2843.16,0.00010998,2]
[335776042,1724487040906,-2843.16,0.00010998,2]
[335776044,1724487040916,-500.0,0.00010998,2]
[335776046,1724487040925,-500.0,0.00010998,2]
[335776048,1724487040934,-500.0,0.00010998,2]
[335776050,1724487040943,-500.0,0.00010998,2]
[335776052,1724487040952,-500.0,0.00010998,2]
[335776054,1724487040961,-500.0,0.00010998,2]
[335776056,1724487040971,-500.0,0.00010998,2]
[335776058,1724487040981,-500.0,0.00010998,2]
[335776060,1724487040990,-500.0,0.00010998,2]
[335776062,1724487041000,-456.11,0.00010998,2]
[335776064,1724487041009,-500.0,0.00010998,2]
[335776066,1724487041018,-500.0,0.00010998,2]
[335776068,1724487041027,-500.0,0.00010998,2]
[335776070,1724487041036,-500.0,0.00010998,2]
[335776072,1724487041045,-500.0,0.00010998,2]
[335776074,1724487041055,-500.0,0.00010998,2]
[335776076,1724487041064,-500.0,0.00010998,2]
[335776078,1724487041073,-500.0,0.00010998,2]
[335776080,1724487041082,-500.0,0.00010998,2]
[335776081,1724487041097,-500.0,0.00010998,2]
[335776083,1724487041110,-500.0,0.00010998,2]
[335776085,1724487041119,-181.60515036,0.00010998,2]
[335776087,1724487041128,-500.0,0.00010998,2]
[335776089,1724487041137,-500.0,0.00010998,2]
[335776091,1724487041145,-500.0,0.00010998,2]
[335776093,1724487041154,-500.0,0.00010998,2]
[335776095,1724487041163,-500.0,0.00010998,2]
[335776097,1724487041172,-500.0,0.00010998,2]
[335776099,1724487041181,-500.0,0.00010998,2]
[335776101,1724487041190,-500.0,0.00010998,2]
[335776102,1724487041199,-500.0,0.00010998,2]
[335776104,1724487041207,-500.0,0.00010998,2]
[335776106,1724487041216,-500.0,0.00010998,2]
[335776108,1724487041225,-516.34481954,0.00010998,2]
[335776110,1724487041233,-500.0,0.00010998,2]
[335776112,1724487041242,-500.0,0.00010998,2]
[335776114,1724487041252,-500.0,0.00010998,2]
[335776116,1724487041260,-500.0,0.00010998,2]
[335776118,1724487041269,-500.0,0.00010998,2]
[335776120,1724487041278,-500.0,0.00010998,2]
[335776122,1724487041287,-500.0,0.00010998,2]
[335776123,1724487041296,-500.0,0.00010998,2]
[335776125,1724487041306,-500.0,0.00010998,2]
[335776127,1724487041315,-500.0,0.00010998,2]
[335776129,1724487041324,-500.0,0.00010998,2]
[335776131,1724487041333,-500.0,0.00010998,2]
[335776133,1724487041344,-500.0,0.00010998,2]
[335776135,1724487041353,-500.0,0.00010998,2]
[335776136,1724487041362,-500.0,0.00010998,2]
[335776138,1724487041371,-500.0,0.00010998,2]
[335776140,1724487041380,-500.0,0.00010998,2]
[335776142,1724487041389,-500.0,0.00010998,2]
[335776144,1724487041398,-500.0,0.00010998,2]
[335776146,1724487041408,-4630.78,0.00010998,2]
[335776148,1724487041417,-4630.78,0.00010998,2]
[335776150,1724487041426,-4630.78,0.00010998,2]
[335776152,1724487041435,-4630.78,0.00010998,2]
[335776154,1724487041445,-287.67152495,0.00010998,2]
[335776156,1724487041454,-552.33,0.00010998,2]
[335776158,1724487041463,-552.33,0.00010998,2]
[335776160,1724487041472,-552.33,0.00010998,2]
[335776162,1724487041481,-552.33,0.00010998,2]
[335776164,1724487041490,-500.0,0.00010998,2]
[335776166,1724487041499,-500.0,0.00010998,2]
[335776168,1724487041508,-500.0,0.00010998,2]
[335776169,1724487041517,-500.0,0.00010998,2]
[335776171,1724487041527,-837.13,0.00010998,2]
[335776173,1724487041536,-837.13,0.00010998,2]
[335776175,1724487041545,-837.13,0.00010998,2]
[335776177,1724487041554,-837.13,0.00010998,2]
[335776179,1724487041563,-500.0,0.00010998,2]
[335776181,1724487041573,-500.0,0.00010998,2]
[335776183,1724487041582,-500.0,0.00010998,2]
[335776185,1724487041595,-500.0,0.00010998,2]
[335776187,1724487041604,-1553.34,0.00010998,2]
[335776189,1724487041613,-1553.34,0.00010998,2]
[335776191,1724487041622,-1553.34,0.00010998,2]
[335776192,1724487041631,-1553.34,0.00010998,2]
[335776194,1724487041640,-500.0,0.00010998,2]
[335776196,1724487041650,-500.0,0.00010998,2]
[335776198,1724487041659,-500.0,0.00010998,2]
[335776200,1724487041668,-500.0,0.00010998,2]
[335776202,1724487041677,-500.0,0.00010998,2]
[335776204,1724487041686,-500.0,0.00010998,2]
[335776206,1724487041695,-500.0,0.00010998,2]
[335776208,1724487041704,-500.0,0.00010998,2]
[335776210,1724487041713,-500.0,0.00010998,2]
[335776212,1724487041722,-337.64,0.00010998,2]
[335776213,1724487041731,-500.0,0.00010998,2]
[335776215,1724487041740,-500.0,0.00010998,2]
[335776217,1724487041749,-500.0,0.00010998,2]
[335776219,1724487041758,-500.0,0.00010998,2]
[335776221,1724487041767,-538.21,0.00010998,2]
[335776223,1724487041776,-500.0,0.00010998,2]
[335776225,1724487041785,-500.0,0.00010998,2]
[335776227,1724487041794,-500.0,0.00010998,2]
[335776229,1724487041803,-500.0,0.00010998,2]
[335776231,1724487041812,-500.0,0.00010998,2]
[335776233,1724487041821,-727.71,0.00010998,2]
[335776235,1724487041831,-500.0,0.00010998,2]
[335776237,1724487041840,-500.0,0.00010998,2]
[335776239,1724487041849,-727.71,0.00010998,2]
[335776241,1724487041859,-500.0,0.00010998,2]
[335776242,1724487041868,-727.71,0.00010998,2]
[335776244,1724487041877,-727.71,0.00010998,2]
[335776246,1724487041887,-2102.7,0.00010998,2]
[335776248,1724487041897,-2102.7,0.00010998,2]
[335776250,1724487041907,-2102.7,0.00010998,2]
[335776252,1724487041917,-2102.7,0.00010998,2]
[335776254,1724487041926,-500.0,0.00010998,2]
[335776256,1724487041935,-500.0,0.00010998,2]
[335776258,1724487041945,-500.0,0.00010998,2]
[335776260,1724487041957,-500.0,0.00010998,2]
[335776261,1724487041966,-500.0,0.00010998,2]
[335776263,1724487041977,-500.0,0.00010998,2]
[335776265,1724487041986,-500.0,0.00010998,2]
[335776267,1724487041996,-500.0,0.00010998,2]
[335776269,1724487042006,-500.0,0.00010998,2]
[335776271,1724487042015,-500.0,0.00010998,2]
[335776273,1724487042024,-500.0,0.00010998,2]
[335776275,1724487042033,-500.0,0.00010998,2]
[335776277,1724487042042,-500.0,0.00010998,2]
[335776279,1724487042051,-500.0,0.00010998,2]
[335776281,1724487042061,-368.68,0.00010998,2]
[335776283,1724487042070,-550.21,0.00010998,2]
[335776285,1724487042080,-550.21,0.00010998,2]
[335776287,1724487042089,-500.0,0.00010998,2]
[335776289,1724487042099,-500.0,0.00010998,2]
[335776290,1724487042108,-550.21,0.00010998,2]
[335776292,1724487042117,-500.0,0.00010998,2]
[335776294,1724487042127,-550.21,0.00010998,2]
[335776296,1724487042135,-500.0,0.00010998,2]